[Event "*** Titled Tuesday 3|2 Blitz"]
[Site "Chess.com"]
[Date "2016.08.02"]
[Round "1"]
[White "alturas_pacificas"]
[Black "TyIerDurden"]
[Result "1/2-1/2"]
[WhiteElo "2141"]
[BlackElo "2459"]
[TimeControl "180+2"]
[EndTime "11:07:41 PDT"]
[Termination "Game drawn by agreement"]

1. d4 {[%clk 0:02:59.8]} 1... d5 {[%clk 0:02:53.5]} 2. Bf4 {[%clk 0:02:59.3]}
2... c6 {[%clk 0:02:55.2]} 3. e3 {[%clk 0:02:59.8]} 3... Nf6 {[%clk 0:02:56.4]}
4. Nd2 {[%clk 0:02:55.5]} 4... Bf5 {[%clk 0:02:57.5]} 5. c4 {[%clk 0:02:53]}
5... Nbd7 {[%clk 0:02:58.1]} 6. Qb3 {[%clk 0:02:50.6]} 6... Qb6 {[%clk
0:02:54.4]} 7. c5 {[%clk 0:02:50.4]} 7... Qxb3 {[%clk 0:02:52]} 8. axb3 {[%clk
0:02:51.6]} 8... e6 {[%clk 0:02:53.9]} 9. h3 {[%clk 0:02:45.2]} 9... Be7 {[%clk
0:02:54.8]} 10. b4 {[%clk 0:02:45]} 10... a6 {[%clk 0:02:54.3]} 11. Ngf3 {[%clk
0:02:27.2]} 11... O-O {[%clk 0:02:54.6]} 12. Nb3 {[%clk 0:02:24.7]} 12... Rfe8
{[%clk 0:02:49.3]} 13. Na5 {[%clk 0:02:19.9]} 13... Ra7 {[%clk 0:02:38]} 14. Be2
{[%clk 0:02:16.7]} 14... Nh5 {[%clk 0:02:27.6]} 15. Bh2 {[%clk 0:01:55.9]} 15...
Nhf6 {[%clk 0:02:15.9]} 16. O-O {[%clk 0:01:56.3]} 16... Bd8 {[%clk 0:02:02.7]}
17. Ne5 {[%clk 0:01:52.3]} 17... Bxa5 {[%clk 0:01:57.9]} 18. bxa5 {[%clk
0:01:51.8]} 18... Nxe5 {[%clk 0:01:56.9]} 19. Bxe5 {[%clk 0:01:49.3]} 19... Nd7
{[%clk 0:01:58.8]} 20. Bd6 {[%clk 0:01:40.8]} 20... f6 {[%clk 0:01:56.4]} 21.
Ra4 {[%clk 0:01:36.8]} 21... e5 {[%clk 0:01:57.3]} 22. Bg4 {[%clk 0:01:28.1]}
22... Be6 {[%clk 0:01:50.6]} 23. Bxe6+ {[%clk 0:01:25.3]} 23... Rxe6 {[%clk
0:01:50.2]} 24. Rb4 {[%clk 0:01:26.7]} 24... exd4 {[%clk 0:01:43.2]} 25. Rxd4
{[%clk 0:01:19.5]} 25... Kf7 {[%clk 0:01:45.1]} 26. Rfd1 {[%clk 0:01:20.5]}
26... g5 {[%clk 0:01:36.2]} 27. R1d3 {[%clk 0:01:20.3]} 27... Ne5 {[%clk
0:01:34.8]} 28. Rb3 {[%clk 0:01:16.9]} 28... Nc4 {[%clk 0:01:33.5]} 29. Bb8
{[%clk 0:01:15.7]} 29... Ra8 {[%clk 0:01:32.7]} 30. Rxb7+ {[%clk 0:01:16.1]}
30... Re7 {[%clk 0:01:33.7]} 31. Rxe7+ {[%clk 0:01:12.6]} 31... Kxe7 {[%clk
0:01:35.6]} 32. Bc7 {[%clk 0:01:10.8]} 32... Kd7 {[%clk 0:01:34.5]} 33. Bb6
{[%clk 0:01:10.3]} 33... Nxb2 {[%clk 0:01:28.2]} 34. e4 {[%clk 0:01:10.9]} 34...
Ke6 {[%clk 0:01:23.4]} 35. exd5+ {[%clk 0:01:11.6]} 35... cxd5 {[%clk
0:01:24.4]} 36. c6 {[%clk 0:01:12.2]} 36... Kd6 {[%clk 0:01:21.5]} 37. c7 {[%clk
0:01:12.4]} 37... Kc6 {[%clk 0:01:19.6]} 38. f4 {[%clk 0:01:11.6]} 38... Nc4
{[%clk 0:01:12.9]} 39. fxg5 {[%clk 0:01:09.9]} 39... fxg5 {[%clk 0:01:13.4]} 40.
Kf2 {[%clk 0:00:40.3]} 40... Nd6 {[%clk 0:01:08.8]} 41. Kf3 {[%clk 0:00:31.2]}
1/2-1/2

[Event "*** Titled Tuesday 3|2 Blitz"]
[Site "Chess.com"]
[Date "2016.08.02"]
[Round "1"]
[White "Kawhi_Leonard2"]
[Black "Sven_Tica"]
[Result "0-1"]
[WhiteElo "2083"]
[BlackElo "2429"]
[TimeControl "180+2"]
[EndTime "11:07:47 PDT"]
[Termination "Sven_Tica won by resignation"]

1. e4 {[%clk 0:03:00.2]} 1... c5 {[%clk 0:03:01.1]} 2. Nf3 {[%clk 0:03:00.9]}
2... Nf6 {[%clk 0:03:02.4]} 3. d4 {[%clk 0:03:02.4]} 3... Nxe4 {[%clk
0:03:00.9]} 4. dxc5 {[%clk 0:02:58.6]} 4... Nxc5 {[%clk 0:03:01]} 5. Nc3 {[%clk
0:02:57]} 5... Nc6 {[%clk 0:03:00.1]} 6. g3 {[%clk 0:02:54.9]} 6... g6 {[%clk
0:02:58.2]} 7. Bg2 {[%clk 0:02:56]} 7... Bg7 {[%clk 0:02:59.6]} 8. Be3 {[%clk
0:02:53]} 8... Qa5 {[%clk 0:02:55.4]} 9. Qd2 {[%clk 0:02:52.1]} 9... O-O {[%clk
0:02:52.6]} 10. h4 {[%clk 0:02:49.4]} 10... h5 {[%clk 0:02:43.8]} 11. Bh6 {[%clk
0:02:48.9]} 11... d6 {[%clk 0:02:38]} 12. Bxg7 {[%clk 0:02:35]} 12... Kxg7
{[%clk 0:02:39.9]} 13. O-O-O {[%clk 0:02:34.4]} 13... Be6 {[%clk 0:02:37.8]} 14.
Kb1 {[%clk 0:02:33]} 14... Ne4 {[%clk 0:02:34.8]} 15. Qe3 {[%clk 0:02:12.5]}
15... Nxc3+ {[%clk 0:02:31.2]} 16. Qxc3+ {[%clk 0:02:13.6]} 16... Qxc3 {[%clk
0:02:31.8]} 17. bxc3 {[%clk 0:02:14.9]} 17... Rfc8 {[%clk 0:02:30.5]} 18. Nd4
{[%clk 0:02:12.6]} 18... Nxd4 {[%clk 0:02:29.7]} 19. cxd4 {[%clk 0:02:13.2]}
19... Rc4 {[%clk 0:02:30.6]} 20. Rhe1 {[%clk 0:02:06.4]} 20... Kf8 {[%clk
0:02:30.1]} 21. Re3 {[%clk 0:01:56.3]} 21... Rac8 {[%clk 0:02:23]} 22. Rd2
{[%clk 0:01:54.7]} 22... b6 {[%clk 0:02:18.9]} 23. Be4 {[%clk 0:01:53.3]} 23...
Ra4 {[%clk 0:02:17.7]} 24. d5 {[%clk 0:01:51.4]} 24... Bd7 {[%clk 0:02:15.3]}
25. Bd3 {[%clk 0:01:48.3]} 25... e5 {[%clk 0:02:07.5]} 26. dxe6 {[%clk
0:01:48.4]} 26... Bxe6 {[%clk 0:02:08.5]} 27. c4 {[%clk 0:01:42.3]} 27... Rb4+
{[%clk 0:02:05.8]} 28. Ka1 {[%clk 0:01:41]} 28... Bxc4 {[%clk 0:02:06.5]} 29.
Bxc4 {[%clk 0:01:39.4]} 29... Rcxc4 {[%clk 0:02:08.4]} 30. a3 {[%clk 0:01:39.1]}
30... Rd4 {[%clk 0:02:04.4]} 31. Red3 {[%clk 0:01:37.3]} 31... Rxd3 {[%clk
0:02:04.7]} 32. Rxd3 {[%clk 0:01:38.6]} 32... Ra4 {[%clk 0:02:06.3]} 33. Rxd6
{[%clk 0:01:34.3]} 33... Rxa3+ {[%clk 0:02:06]} 34. Kb2 {[%clk 0:01:35.7]} 34...
Rf3 {[%clk 0:02:07.6]} 35. Rd2 {[%clk 0:01:35.2]} 35... Ke7 {[%clk 0:02:06.9]}
36. Ka2 {[%clk 0:01:34]} 36... f6 {[%clk 0:02:05.1]} 37. Kb2 {[%clk 0:01:35.1]}
37... g5 {[%clk 0:02:06.2]} 38. hxg5 {[%clk 0:01:30.2]} 38... fxg5 {[%clk
0:02:08.1]} 39. Kc1 {[%clk 0:01:31.1]} 39... h4 {[%clk 0:02:07.4]} 40. gxh4
{[%clk 0:01:32.3]} 40... gxh4 {[%clk 0:02:09.3]} 41. Rd4 {[%clk 0:01:33.4]}
41... h3 {[%clk 0:02:09.7]} 42. Rh4 {[%clk 0:01:34.3]} 42... Kd6 {[%clk
0:02:11.1]} 43. Kd1 {[%clk 0:01:35.4]} 43... Rxf2 {[%clk 0:02:12.1]} 44. Rxh3
{[%clk 0:01:35.7]} 44... Kc5 {[%clk 0:02:12.9]} 45. Kc1 {[%clk 0:01:36.8]} 45...
Rf4 {[%clk 0:02:12]} 46. Kb2 {[%clk 0:01:36.6]} 46... a5 {[%clk 0:02:12]} 47.
Rh5+ {[%clk 0:01:36.9]} 47... Kb4 {[%clk 0:02:12.7]} 48. Rh6 {[%clk 0:01:37.8]}
48... b5 {[%clk 0:02:13.7]} 49. Ka1 {[%clk 0:01:37.8]} 49... Ka4 {[%clk
0:02:13.2]} 50. Rh3 {[%clk 0:01:38.4]} 50... b4 {[%clk 0:02:14.1]} 51. Rg3
{[%clk 0:01:39.2]} 51... Rf2 {[%clk 0:02:15]} 52. Rh3 {[%clk 0:01:39.6]} 52...
b3 {[%clk 0:02:15.8]} 53. Rh1 {[%clk 0:01:34.1]} 53... Kb4 {[%clk 0:02:09.7]}
54. Rh4+ {[%clk 0:01:34.4]} 54... Kc3 {[%clk 0:02:10.7]} 55. Rh1 {[%clk
0:01:35.5]} 55... a4 {[%clk 0:02:08.6]} 56. Kb1 {[%clk 0:01:36.7]} 56... Rf3
{[%clk 0:02:08.3]} 57. Rc1+ {[%clk 0:01:34.9]} 57... Kb4 {[%clk 0:02:09]} 58.
Rg1 {[%clk 0:01:35.6]} 58... Kc3 {[%clk 0:02:08.6]} 59. Rh1 {[%clk 0:01:35.2]}
59... Kd2 {[%clk 0:02:08.3]} 60. Rh4 {[%clk 0:01:33.4]} 60... a3 {[%clk
0:02:07.7]} 61. Rh2+ {[%clk 0:01:34]} 61... Ke1 {[%clk 0:02:05.9]} 62. Rg2
{[%clk 0:01:28.8]} 62... Rd3 {[%clk 0:02:00.6]} 63. Rg1+ {[%clk 0:01:27.5]}
63... Kf2 {[%clk 0:02:00.3]} 64. Rh1 {[%clk 0:01:27.7]} 64... Rg3 {[%clk
0:01:59.3]} 65. Rh2+ {[%clk 0:01:22.9]} 65... Rg2 {[%clk 0:01:59.8]} 0-1

[Event "*** Titled Tuesday 3|2 Blitz"]
[Site "Chess.com"]
[Date "2016.08.02"]
[Round "1"]
[White "saraswathii"]
[Black "chipmunknau"]
[Result "0-1"]
[WhiteElo "2090"]
[BlackElo "2432"]
[TimeControl "180+2"]
[EndTime "11:07:49 PDT"]
[Termination "chipmunknau won by resignation"]

1. e4 {[%clk 0:03:01]} 1... c6 {[%clk 0:03:00.8]} 2. d3 {[%clk 0:03:02.2]} 2...
d5 {[%clk 0:03:01.8]} 3. Nd2 {[%clk 0:03:03.4]} 3... g6 {[%clk 0:03:02.8]} 4.
Ngf3 {[%clk 0:03:04.1]} 4... Bg7 {[%clk 0:03:04]} 5. g3 {[%clk 0:03:05.4]} 5...
e5 {[%clk 0:03:04]} 6. Bg2 {[%clk 0:03:06.3]} 6... Ne7 {[%clk 0:03:05]} 7. O-O
{[%clk 0:03:07.3]} 7... O-O {[%clk 0:03:06.2]} 8. Re1 {[%clk 0:03:08.4]} 8...
Qc7 {[%clk 0:03:06]} 9. Qe2 {[%clk 0:03:09.1]} 9... d4 {[%clk 0:03:04.9]} 10. a4
{[%clk 0:03:08.1]} 10... a5 {[%clk 0:03:02.6]} 11. h4 {[%clk 0:03:07.6]} 11...
h6 {[%clk 0:02:58.3]} 12. Nf1 {[%clk 0:03:07.1]} 12... b5 {[%clk 0:02:49.5]} 13.
axb5 {[%clk 0:03:06.2]} 13... cxb5 {[%clk 0:02:51.4]} 14. c3 {[%clk 0:02:34.9]}
14... dxc3 {[%clk 0:02:47.3]} 15. bxc3 {[%clk 0:02:35.6]} 15... Be6 {[%clk
0:02:36.5]} 16. Bb2 {[%clk 0:02:29.5]} 16... Nd7 {[%clk 0:02:31.2]} 17. d4
{[%clk 0:02:28.4]} 17... Bc4 {[%clk 0:02:31.4]} 18. Qd2 {[%clk 0:02:28.8]} 18...
Rfd8 {[%clk 0:02:18]} 19. Ne3 {[%clk 0:02:28.2]} 19... Nb6 {[%clk 0:02:19]} 20.
Ng4 {[%clk 0:02:22.2]} 20... h5 {[%clk 0:01:52.2]} 21. Ne3 {[%clk 0:02:12.4]}
21... Na4 {[%clk 0:01:48.6]} 22. Nxc4 {[%clk 0:02:07.1]} 22... Qxc4 {[%clk
0:01:50.5]} 23. Bf1 {[%clk 0:02:08.4]} 23... Qb3 {[%clk 0:01:40.9]} 24. Ba3
{[%clk 0:02:04.9]} 24... b4 {[%clk 0:01:24]} 25. cxb4 {[%clk 0:01:52.5]} 25...
Qxf3 {[%clk 0:01:24.2]} 26. b5 {[%clk 0:01:40.6]} 26... Rxd4 {[%clk 0:01:19.4]}
27. Qc2 {[%clk 0:01:31.8]} 27... Rc8 {[%clk 0:01:18.9]} 28. Qa2 {[%clk
0:01:26.3]} 28... Bf8 {[%clk 0:01:11.1]} 29. Be2 {[%clk 0:00:46.2]} 29... Qxe4
{[%clk 0:01:05.3]} 30. Bc4 {[%clk 0:00:41.4]} 30... Qf5 {[%clk 0:01:05.7]} 31.
Bb3 {[%clk 0:00:35.7]} 31... Nc3 {[%clk 0:00:52.6]} 32. Qb2 {[%clk 0:00:33.9]}
32... Nxb5 {[%clk 0:00:47.5]} 33. Bxf7+ {[%clk 0:00:31]} 33... Qxf7 {[%clk
0:00:42.7]} 34. Qb4 {[%clk 0:00:19.7]} 34... axb4 {[%clk 0:00:42.8]} 0-1

[Event "*** Titled Tuesday 3|2 Blitz"]
[Site "Chess.com"]
[Date "2016.08.02"]
[Round "1"]
[White "Nadtkins"]
[Black "shivakaka"]
[Result "1-0"]
[WhiteElo "2457"]
[BlackElo "2120"]
[TimeControl "180+2"]
[EndTime "11:07:53 PDT"]
[Termination "Nadtkins won on time"]

1. Nf3 {[%clk 0:03:01.9]} 1... g6 {[%clk 0:02:50.7]} 2. d4 {[%clk 0:02:58.6]}
2... Bg7 {[%clk 0:02:51.8]} 3. e4 {[%clk 0:02:58.1]} 3... d6 {[%clk 0:02:51.7]}
4. c3 {[%clk 0:02:57.9]} 4... Nf6 {[%clk 0:02:52.7]} 5. Bd3 {[%clk 0:02:57.5]}
5... O-O {[%clk 0:02:54]} 6. h3 {[%clk 0:02:58.7]} 6... Nfd7 {[%clk 0:02:47.3]}
7. Bg5 {[%clk 0:02:51.2]} 7... c5 {[%clk 0:02:46.8]} 8. d5 {[%clk 0:02:47.5]}
8... Ne5 {[%clk 0:02:38.9]} 9. Nxe5 {[%clk 0:02:45.3]} 9... Bxe5 {[%clk
0:02:39.1]} 10. Bh6 {[%clk 0:02:38.4]} 10... Bg7 {[%clk 0:02:32.8]} 11. Bxg7
{[%clk 0:02:39.1]} 11... Kxg7 {[%clk 0:02:33.5]} 12. O-O {[%clk 0:02:41]} 12...
a6 {[%clk 0:02:32.5]} 13. a4 {[%clk 0:02:41.7]} 13... Nd7 {[%clk 0:02:29.9]} 14.
f4 {[%clk 0:02:36.5]} 14... Rb8 {[%clk 0:02:28.9]} 15. Na3 {[%clk 0:02:30.1]}
15... e6 {[%clk 0:02:14.1]} 16. dxe6 {[%clk 0:02:22]} 16... fxe6 {[%clk
0:02:14.1]} 17. Qd2 {[%clk 0:02:06.7]} 17... Nf6 {[%clk 0:02:07.6]} 18. Rae1
{[%clk 0:01:57]} 18... d5 {[%clk 0:01:59.9]} 19. e5 {[%clk 0:01:52.9]} 19... Ne8
{[%clk 0:01:56.8]} 20. Nc2 {[%clk 0:01:45.8]} 20... Bd7 {[%clk 0:01:53.1]} 21.
b3 {[%clk 0:01:42.3]} 21... Qb6 {[%clk 0:01:49.7]} 22. c4 {[%clk 0:01:29.4]}
22... d4 {[%clk 0:01:39.7]} 23. Rb1 {[%clk 0:01:20.9]} 23... Bc6 {[%clk
0:01:38.1]} 24. a5 {[%clk 0:01:14.7]} 24... Qd8 {[%clk 0:01:27.4]} 25. b4 {[%clk
0:01:13.4]} 25... cxb4 {[%clk 0:01:14.9]} 26. Qxb4 {[%clk 0:01:15.3]} 26... Kh8
{[%clk 0:01:08.7]} 27. Qb6 {[%clk 0:01:16.1]} 27... Ng7 {[%clk 0:01:03.9]} 28.
Nxd4 {[%clk 0:01:02.2]} 28... Qh4 {[%clk 0:00:43.3]} 29. Nxc6 {[%clk 0:00:59.7]}
29... Rbc8 {[%clk 0:00:21]} 30. Qxb7 {[%clk 0:00:56.2]} 30... Nh5 {[%clk
0:00:20.6]} 31. Qe7 {[%clk 0:00:52.9]} 1-0

[Event "*** Titled Tuesday 3|2 Blitz"]
[Site "Chess.com"]
[Date "2016.08.02"]
[Round "1"]
[White "Genghis_K"]
[Black "ChessNinja48"]
[Result "1-0"]
[WhiteElo "2698"]
[BlackElo "2336"]
[TimeControl "180+2"]
[EndTime "11:08:05 PDT"]
[Termination "Genghis_K won by resignation"]

1. e4 {[%clk 0:02:57.5]} 1... e5 {[%clk 0:02:59.5]} 2. Nf3 {[%clk 0:02:55.5]}
2... Nc6 {[%clk 0:03:00.4]} 3. Bb5 {[%clk 0:02:56.9]} 3... a6 {[%clk 0:03:01.5]}
4. Ba4 {[%clk 0:02:57]} 4... Nf6 {[%clk 0:03:02.8]} 5. O-O {[%clk 0:02:58.5]}
5... Be7 {[%clk 0:03:04.3]} 6. Re1 {[%clk 0:02:59.3]} 6... b5 {[%clk 0:03:05.6]}
7. Bb3 {[%clk 0:03:00.8]} 7... d6 {[%clk 0:03:06.6]} 8. c3 {[%clk 0:03:02.1]}
8... O-O {[%clk 0:03:07.7]} 9. h3 {[%clk 0:03:03.6]} 9... Nb8 {[%clk 0:03:09.1]}
10. d4 {[%clk 0:03:05]} 10... Nbd7 {[%clk 0:03:10.7]} 11. Nbd2 {[%clk
0:03:05.6]} 11... Bb7 {[%clk 0:03:12.3]} 12. Bc2 {[%clk 0:03:07]} 12... Re8
{[%clk 0:03:13.9]} 13. Nf1 {[%clk 0:03:08.5]} 13... g6 {[%clk 0:03:15.5]} 14.
Ng3 {[%clk 0:03:08.7]} 14... Bf8 {[%clk 0:03:16.3]} 15. Bg5 {[%clk 0:03:09.4]}
15... Bg7 {[%clk 0:03:16.3]} 16. Qd2 {[%clk 0:03:10.2]} 16... Qe7 {[%clk
0:03:11.6]} 17. a4 {[%clk 0:03:07.4]} 17... c6 {[%clk 0:03:12]} 18. Bh6 {[%clk
0:03:02.6]} 18... Qf8 {[%clk 0:03:13]} 19. Bxg7 {[%clk 0:03:01.2]} 19... Qxg7
{[%clk 0:03:13]} 20. b4 {[%clk 0:03:01.5]} 20... Nb6 {[%clk 0:02:52]} 21. Bb3
{[%clk 0:02:53.9]} 21... Nxa4 {[%clk 0:02:29.5]} 22. Bxa4 {[%clk 0:02:50.7]}
22... bxa4 {[%clk 0:02:30.5]} 23. Rxa4 {[%clk 0:02:38.4]} 23... Rad8 {[%clk
0:02:16.4]} 24. dxe5 {[%clk 0:02:22.1]} 24... dxe5 {[%clk 0:02:07.6]} 25. Qe3
{[%clk 0:02:22.4]} 25... Qf8 {[%clk 0:02:08]} 26. Ra5 {[%clk 0:02:18.9]} 26...
Qd6 {[%clk 0:01:53.4]} 27. Qg5 {[%clk 0:01:56.3]} 27... Nd7 {[%clk 0:00:59.4]}
28. Nf5 {[%clk 0:01:34.9]} 28... Qf6 {[%clk 0:01:00.4]} 29. Qg3 {[%clk
0:01:18.9]} 29... Kh8 {[%clk 0:00:58.1]} 30. Nh6 {[%clk 0:01:17.1]} 30... Re7
{[%clk 0:00:50.2]} 31. Nxe5 {[%clk 0:01:00.1]} 31... c5 {[%clk 0:00:33.4]} 32.
Nxd7 {[%clk 0:00:49.1]} 32... Rdxd7 {[%clk 0:00:34.6]} 33. Ng4 {[%clk
0:00:26.8]} 33... Qe6 {[%clk 0:00:33.3]} 34. Rxc5 {[%clk 0:00:25.3]} 34... h5
{[%clk 0:00:33.1]} 35. Ne5 {[%clk 0:00:22.6]} 35... Rd2 {[%clk 0:00:34.5]} 36.
Qf4 {[%clk 0:00:21.1]} 36... Kg7 {[%clk 0:00:35.6]} 37. Qxd2 {[%clk 0:00:21.1]}
37... Qf6 {[%clk 0:00:36.2]} 38. Nf3 {[%clk 0:00:21.1]} 38... Bxe4 {[%clk
0:00:37.3]} 39. Qd4 {[%clk 0:00:21.1]} 39... Bxf3 {[%clk 0:00:38.1]} 40. Rxe7
{[%clk 0:00:20.5]} 1-0

[Event "*** Titled Tuesday 3|2 Blitz"]
[Site "Chess.com"]
[Date "2016.08.02"]
[Round "1"]
[White "WanderingPuppet"]
[Black "MinhGTrAn"]
[Result "0-1"]
[WhiteElo "2258"]
[BlackElo "2582"]
[TimeControl "180+2"]
[EndTime "11:08:14 PDT"]
[Termination "MinhGTrAn won by checkmate"]

1. e4 {[%clk 0:03:01.9]} 1... c5 {[%clk 0:02:57.7]} 2. Nf3 {[%clk 0:03:01.1]}
2... d6 {[%clk 0:02:58.2]} 3. d4 {[%clk 0:03:02.4]} 3... cxd4 {[%clk 0:03:00.1]}
4. Nxd4 {[%clk 0:03:04.1]} 4... Nf6 {[%clk 0:02:58.7]} 5. Nc3 {[%clk 0:03:04.8]}
5... a6 {[%clk 0:03:00]} 6. Be3 {[%clk 0:03:06.1]} 6... e5 {[%clk 0:02:55]} 7.
Nb3 {[%clk 0:03:06.3]} 7... Be7 {[%clk 0:02:52.9]} 8. h3 {[%clk 0:03:06.9]} 8...
Be6 {[%clk 0:02:39.6]} 9. Qf3 {[%clk 0:03:04]} 9... Nbd7 {[%clk 0:02:31.5]} 10.
g4 {[%clk 0:03:00]} 10... Nb6 {[%clk 0:02:32.8]} 11. Rd1 {[%clk 0:02:58.2]}
11... Rc8 {[%clk 0:02:24]} 12. g5 {[%clk 0:02:58.7]} 12... Nfd7 {[%clk
0:02:24.4]} 13. h4 {[%clk 0:02:56.7]} 13... Nc4 {[%clk 0:02:07.9]} 14. Bxc4
{[%clk 0:02:30.2]} 14... Rxc4 {[%clk 0:02:09.8]} 15. h5 {[%clk 0:02:29.6]} 15...
b5 {[%clk 0:02:02.6]} 16. g6 {[%clk 0:02:28.8]} 16... hxg6 {[%clk 0:01:57.2]}
17. hxg6 {[%clk 0:02:30.7]} 17... Rxh1+ {[%clk 0:01:56.1]} 18. Qxh1 {[%clk
0:02:32.6]} 18... fxg6 {[%clk 0:01:57.7]} 19. Qg2 {[%clk 0:02:02.7]} 19... Kf7
{[%clk 0:01:56.9]} 20. Kd2 {[%clk 0:01:53.9]} 20... b4 {[%clk 0:01:51.5]} 21.
Ne2 {[%clk 0:01:54.8]} 21... Qc7 {[%clk 0:01:49.2]} 22. c3 {[%clk 0:01:45]}
22... bxc3+ {[%clk 0:01:48.4]} 23. Nxc3 {[%clk 0:01:46.9]} 23... Nf6 {[%clk
0:01:35.9]} 24. Rg1 {[%clk 0:01:36.4]} 24... Bg4 {[%clk 0:01:31.5]} 25. f3
{[%clk 0:01:28.3]} 25... Bh5 {[%clk 0:01:32.4]} 26. Rc1 {[%clk 0:00:55.3]} 26...
d5 {[%clk 0:01:21.8]} 27. exd5 {[%clk 0:00:43.1]} 27... Bb4 {[%clk 0:01:22.7]}
28. Qe2 {[%clk 0:00:21.4]} 28... Nxd5 {[%clk 0:00:57]} 29. Ke1 {[%clk 0:00:09]}
29... Nxc3 {[%clk 0:00:54.4]} 30. bxc3 {[%clk 0:00:10.9]} 30... Rxc3 {[%clk
0:00:42.5]} 31. Kf2 {[%clk 0:00:05.2]} 31... e4 {[%clk 0:00:42.4]} 32. Rxc3
{[%clk 0:00:05]} 32... Bxc3 {[%clk 0:00:42.7]} 33. Qxa6 {[%clk 0:00:04.2]} 33...
Qh2+ {[%clk 0:00:39.2]} 34. Kf1 {[%clk 0:00:05]} 34... Qh1+ {[%clk 0:00:39.1]}
35. Bg1 {[%clk 0:00:05.8]} 35... Qxf3+ {[%clk 0:00:37.7]} 36. Bf2 {[%clk
0:00:06]} 36... Qh1+ {[%clk 0:00:37.8]} 37. Bg1 {[%clk 0:00:06.6]} 37... Qh3+
{[%clk 0:00:39.4]} 38. Kf2 {[%clk 0:00:04.9]} 38... Qf3# {[%clk 0:00:41.3]} 0-1

[Event "*** Titled Tuesday 3|2 Blitz"]
[Site "Chess.com"]
[Date "2016.08.02"]
[Round "1"]
[White "psv98"]
[Black "stepanosinovsky"]
[Result "1-0"]
[WhiteElo "2607"]
[BlackElo "2269"]
[TimeControl "180+2"]
[EndTime "11:08:23 PDT"]
[Termination "psv98 won by resignation"]

1. Nf3 {[%clk 0:03:01.9]} 1... Nf6 {[%clk 0:02:58.6]} 2. g3 {[%clk 0:03:02.6]}
2... g6 {[%clk 0:02:59.3]} 3. Bg2 {[%clk 0:03:03.8]} 3... Bg7 {[%clk 0:03:00.8]}
4. O-O {[%clk 0:03:05.7]} 4... O-O {[%clk 0:03:02.4]} 5. c4 {[%clk 0:03:07.3]}
5... d6 {[%clk 0:03:02.6]} 6. d4 {[%clk 0:03:07.1]} 6... Nbd7 {[%clk 0:03:03.5]}
7. Nc3 {[%clk 0:03:08.1]} 7... e5 {[%clk 0:03:04]} 8. e3 {[%clk 0:03:09.2]} 8...
Re8 {[%clk 0:03:03.4]} 9. a4 {[%clk 0:03:09.8]} 9... a5 {[%clk 0:02:44.3]} 10.
b3 {[%clk 0:03:10.6]} 10... c6 {[%clk 0:02:42.8]} 11. Ba3 {[%clk 0:03:11.3]}
11... exd4 {[%clk 0:02:17.5]} 12. exd4 {[%clk 0:03:09.7]} 12... Nf8 {[%clk
0:02:11.3]} 13. Ra2 {[%clk 0:03:04.9]} 13... Bf5 {[%clk 0:02:06]} 14. d5 {[%clk
0:03:03.1]} 14... c5 {[%clk 0:02:02.3]} 15. Nb5 {[%clk 0:02:55.4]} 15... h6
{[%clk 0:01:52]} 16. Bc1 {[%clk 0:02:52.5]} 16... g5 {[%clk 0:01:51.1]} 17. Re1
{[%clk 0:02:49.2]} 17... Qd7 {[%clk 0:01:41.8]} 18. Rae2 {[%clk 0:02:47.4]}
18... Rxe2 {[%clk 0:01:39.6]} 19. Rxe2 {[%clk 0:02:49.3]} 19... Ng6 {[%clk
0:01:33.2]} 20. Qe1 {[%clk 0:02:42.7]} 20... b6 {[%clk 0:01:29.4]} 21. Bb2
{[%clk 0:02:35.2]} 21... Re8 {[%clk 0:00:52]} 22. Rxe8+ {[%clk 0:02:32]} 22...
Nxe8 {[%clk 0:00:52.4]} 23. Bxg7 {[%clk 0:02:31.9]} 23... Kxg7 {[%clk
0:00:53.1]} 24. Qc3+ {[%clk 0:02:29.1]} 24... Kg8 {[%clk 0:00:40.1]} 25. h4
{[%clk 0:02:29]} 25... f6 {[%clk 0:00:34.9]} 26. hxg5 {[%clk 0:02:08.7]} 26...
hxg5 {[%clk 0:00:35.6]} 27. Nd2 {[%clk 0:02:10.4]} 27... Qe7 {[%clk 0:00:33.9]}
28. Nf1 {[%clk 0:02:10.8]} 28... Bd7 {[%clk 0:00:31]} 29. Ne3 {[%clk 0:02:09.7]}
29... Ng7 {[%clk 0:00:29.3]} 30. Qc2 {[%clk 0:02:06]} 30... f5 {[%clk
0:00:21.6]} 31. Bh3 {[%clk 0:01:49.6]} 31... Qf6 {[%clk 0:00:22.4]} 32. Qc3
{[%clk 0:01:40.3]} 32... Qxc3 {[%clk 0:00:21.9]} 33. Nxc3 {[%clk 0:01:42.2]}
33... Kf7 {[%clk 0:00:22]} 34. Nb5 {[%clk 0:01:37.7]} 34... Bxb5 {[%clk
0:00:22.2]} 35. cxb5 {[%clk 0:01:37.9]} 35... Kf6 {[%clk 0:00:22.6]} 36. Nc4
{[%clk 0:01:38.6]} 36... g4 {[%clk 0:00:15.2]} 37. Bg2 {[%clk 0:01:38.4]} 37...
Ne5 {[%clk 0:00:10]} 38. Nxb6 {[%clk 0:01:39]} 38... Nd3 {[%clk 0:00:10.1]} 39.
Nc4 {[%clk 0:01:38.6]} 39... f4 {[%clk 0:00:10.4]} 40. gxf4 {[%clk 0:01:32.9]}
40... Nxf4 {[%clk 0:00:10.9]} 41. Nxa5 {[%clk 0:01:33.5]} 41... Nf5 {[%clk
0:00:11.4]} 42. Nc4 {[%clk 0:01:34]} 42... Nh4 {[%clk 0:00:12.2]} 43. Be4 {[%clk
0:01:32.9]} 43... Ne2+ {[%clk 0:00:08.4]} 44. Kf1 {[%clk 0:01:32.3]} 44... Nc3
{[%clk 0:00:09.6]} 45. Bh1 {[%clk 0:01:32.9]} 45... Kg5 {[%clk 0:00:09.3]} 46.
b6 {[%clk 0:01:33.2]} 46... Kf4 {[%clk 0:00:07.3]} 47. b7 {[%clk 0:01:34.1]}
47... Nf3 {[%clk 0:00:07.8]} 48. Bxf3 {[%clk 0:01:34.8]} 1-0